fUSD/lending_fUSD_20260502
["ID","MTS","AMOUNT","RATE_DAILY","PERIOD"]
[421445100,1777661447000,-500.0,0.00013699,2]
[421445101,1777661447000,-500.0,0.00013699,2]
[421445110,1777661447000,-500.0,0.00013699,2]
[421445109,1777661447000,-500.0,0.00013699,2]
[421445111,1777661447000,-500.0,0.00013699,2]
[421445103,1777661447000,-500.0,0.00013699,2]
[421445104,1777661447000,-500.0,0.00013699,2]
[421445107,1777661447000,-500.0,0.00013699,2]
[421445105,1777661447000,-500.0,0.00013699,2]
[421445106,1777661447000,-500.0,0.00013699,2]
[421445108,1777661447000,-500.0,0.00013699,2]
[421445113,1777661447000,-442.48,0.000137,2]
[421445123,1777661447000,-659.01,0.00013989,2]
[421445124,1777661447000,-40227.70951039,0.0001399,2]
[421445146,1777661447000,-1049.0,0.0001454,2]
[421445099,1777661447000,-500.0,0.00013699,2]
[421445148,1777661447000,-1267.0,0.0001454,2]
[421445182,1777661447000,-1517.64,0.000153,2]
[421445184,1777661447000,-400.0,0.0001537,2]
[421445183,1777661447000,-789.15,0.00015342,2]
[421445185,1777661447000,-200.0,0.00015373,2]
[421445186,1777661447000,-514.03624237,0.000154,2]
[421445189,1777661447000,-1220.0,0.00015476,2]
[421445195,1777661447000,-2000.0,0.00015479,2]
[421445196,1777661447000,-2000.0,0.00015479,2]
[421445191,1777661447000,-2000.0,0.00015479,2]
[421445200,1777661447000,-2000.0,0.00015479,2]
[421445188,1777661447000,-518.0,0.00015476,2]
[421445199,1777661447000,-2000.0,0.00015479,2]
[421445190,1777661447000,-431.0,0.00015476,2]
[421445179,1777661447000,-162.06,0.00015135,2]
[421445197,1777661447000,-2000.0,0.00015479,2]
[421445198,1777661447000,-2000.0,0.00015479,2]
[421445193,1777661447000,-2000.0,0.00015479,2]
[421445201,1777661447000,-1234.96286392,0.000155,2]
[421445203,1777661447000,-250.0,0.00015616,2]
[421445202,1777661447000,-154.0,0.000156,2]
[421445205,1777661447000,-500.0,0.0001573,2]
[421445204,1777661447000,-1593.45935112,0.00015634,2]
[421445208,1777661447000,-500.0,0.0001589,2]
[421445206,1777661447000,-2000.0,0.0001573,2]
[421445207,1777661447000,-500.0,0.0001589,2]
[421445210,1777661447000,-500.0,0.0001589,2]
[421445209,1777661447000,-500.0,0.0001589,2]
[421445145,1777661447000,-1350.0,0.0001454,2]
[421445194,1777661447000,-2000.0,0.00015479,2]
[421445187,1777661447000,-442.48,0.000154,2]
[421445192,1777661447000,-2000.0,0.00015479,2]
[421445177,1777661447000,-300.0,0.000151,2]
[421445152,1777661447000,-7847.30485673,0.00014799,2]
[421445181,1777661447000,-208.5,0.00015135,2]
[421445162,1777661447000,-427.06500664,0.00015,2]
[421445151,1777661447000,-200.0,0.00014773,2]
[421445154,1777661447000,-229.96742072,0.000149,2]
[421445153,1777661447000,-597.62,0.00014803,2]
[421445156,1777661447000,-229.96742071,0.000149,2]
[421445155,1777661447000,-229.96742071,0.000149,2]
[421445157,1777661447000,-962.56,0.00014958,2]
[421445159,1777661447000,-300.59341299,0.00015,2]
[421445158,1777661447000,-251.0,0.00014967,2]
[421445160,1777661447000,-3900.0,0.00015,2]
[421445164,1777661447000,-300.0,0.00015,2]
[421445175,1777661447000,-150.0,0.00015068,2]
[421445161,1777661447000,-2072.68929273,0.00015,2]
[421445165,1777661447000,-603.0,0.00015,2]
[421445178,1777661447000,-162.06,0.00015135,2]
[421445174,1777661447000,-1169.248139,0.00015068,2]
[421445176,1777661447000,-200.0,0.00015073,2]
[421445171,1777661447000,-1169.248139,0.00015068,2]
[421445168,1777661447000,-162.06,0.00015068,2]
[421445170,1777661447000,-900.0,0.00015068,2]
[421445172,1777661447000,-1169.248139,0.00015068,2]
[421445180,1777661447000,-162.04,0.00015135,2]
[421445169,1777661447000,-787.86,0.00015068,2]
[421445166,1777661447000,-697.0,0.00015,2]
[421445163,1777661447000,-161.0,0.00015,2]
[421445167,1777661447000,-1532.0,0.00015,2]
[421445173,1777661447000,-1169.248139,0.00015068,2]
[421445253,1777661448000,-200.36494847,0.000161,7]
[421445249,1777661448000,-162.38278084,0.00016,3]
[421445243,1777661448000,-237.72991716,0.0001596,2]
[421445250,1777661448000,-348.99828201,0.00016,2]
[421445247,1777661448000,-150.0,0.00016,2]
[421445242,1777661448000,-242.13448988,0.0001589,2]
[421445244,1777661448000,-251.0,0.00015967,2]
[421445240,1777661448000,-500.0,0.0001589,2]
[421445248,1777661448000,-150.0,0.00016,2]
[421445245,1777661448000,-1381.964506,0.00016,2]
[421445255,1777661448000,-8135.9,0.00016116,2]
[421445246,1777661448000,-150.0,0.00016,2]
[421445254,1777661448000,-348.99828201,0.000161,2]
[421445266,1777661448000,-183.81089644,0.00016437,2]
[421445258,1777661448000,-466.58,0.00016206,2]
[421445259,1777661448000,-466.58,0.00016273,2]
[421445265,1777661448000,-500.0,0.00016437,2]
[421445262,1777661448000,-466.58,0.00016409,2]
[421445256,1777661448000,-350.0,0.00016164,2]
[421445260,1777661448000,-200.0,0.0001634,2]
[421445257,1777661448000,-348.99828201,0.000162,2]
[421445261,1777661448000,-466.58,0.00016341,2]
[421445263,1777661448000,-500.0,0.00016437,2]
[421445278,1777661448000,-1587.979414,0.00016438,2]
[421445267,1777661448000,-511.34,0.00016437,2]
[421445277,1777661448000,-1587.979414,0.00016438,2]
[421445251,1777661448000,-200.0,0.00016,2]
[421445264,1777661448000,-500.0,0.00016437,2]
[421445252,1777661448000,-155.87585118,0.00016064,2]
[421445212,1777661448000,-500.0,0.0001589,2]
[421445234,1777661448000,-500.0,0.0001589,2]
[421445271,1777661448000,-532.57,0.00016438,2]
[421445213,1777661448000,-500.0,0.0001589,2]
[421445211,1777661448000,-500.0,0.0001589,2]
[421445215,1777661448000,-500.0,0.0001589,2]
[421445223,1777661448000,-500.0,0.0001589,2]
[421445225,1777661448000,-500.0,0.0001589,2]
[421445224,1777661448000,-500.0,0.0001589,2]
[421445226,1777661448000,-500.0,0.0001589,2]
[421445218,1777661448000,-500.0,0.0001589,2]
[421445216,1777661448000,-500.0,0.0001589,2]
[421445214,1777661448000,-500.0,0.0001589,2]
[421445217,1777661448000,-500.0,0.0001589,2]
[421445222,1777661448000,-500.0,0.0001589,2]
[421445241,1777661448000,-500.0,0.0001589,2]
[421445219,1777661448000,-500.0,0.0001589,2]
[421445221,1777661448000,-500.0,0.0001589,2]
[421445227,1777661448000,-500.0,0.0001589,2]
[421445228,1777661448000,-500.0,0.0001589,2]
[421445229,1777661448000,-500.0,0.0001589,2]
[421445230,1777661448000,-500.0,0.0001589,2]
[421445232,1777661448000,-500.0,0.0001589,2]
[421445238,1777661448000,-500.0,0.0001589,2]
[421445233,1777661448000,-500.0,0.0001589,2]
[421445235,1777661448000,-500.0,0.0001589,2]
[421445237,1777661448000,-500.0,0.0001589,2]
[421445231,1777661448000,-500.0,0.0001589,2]
[421445236,1777661448000,-500.0,0.0001589,2]
[421445239,1777661448000,-500.0,0.0001589,2]
[421445220,1777661448000,-500.0,0.0001589,2]
[421445270,1777661448000,-7417.08,0.00016438,2]
[421445276,1777661448000,-383.73380595,0.00016438,2]
[421445275,1777661448000,-2500.0,0.00016438,2]
[421445308,1777661448000,-500.0,0.00016438,2]
[421445309,1777661448000,-500.0,0.00016438,2]
[421445307,1777661448000,-500.0,0.00016438,2]
[421445306,1777661448000,-500.0,0.00016438,2]
[421445313,1777661448000,-150.0,0.00016438,2]
[421445303,1777661448000,-251.374813,0.00016438,2]
[421445312,1777661448000,-500.0,0.00016438,2]
[421445314,1777661448000,-500.0,0.00016438,2]
[421445326,1777661448000,-500.0,0.00016438,2]
[421445325,1777661448000,-500.0,0.00016438,2]
[421445315,1777661448000,-500.0,0.00016438,2]
[421445318,1777661448000,-500.0,0.00016438,2]
[421445317,1777661448000,-500.0,0.00016438,2]
[421445311,1777661448000,-500.0,0.00016438,2]
[421445319,1777661448000,-500.0,0.00016438,2]
[421445322,1777661448000,-500.0,0.00016438,2]
[421445316,1777661448000,-500.0,0.00016438,2]
[421445321,1777661448000,-500.0,0.00016438,2]
[421445323,1777661448000,-340.86351203,0.00016438,2]
[421445324,1777661448000,-500.0,0.00016438,2]
[421445328,1777661448000,-500.0,0.00016438,2]
[421445327,1777661448000,-500.0,0.00016438,2]
[421445269,1777661448000,-8300.07,0.00016438,2]
[421445332,1777661448000,-654.683004,0.00016438,2]
[421445331,1777661448000,-654.683004,0.00016438,2]
[421445333,1777661448000,-654.683004,0.00016438,2]
[421445334,1777661448000,-654.683004,0.00016438,2]
[421445330,1777661448000,-500.0,0.00016438,2]
[421445320,1777661448000,-500.0,0.00016438,2]
[421445305,1777661448000,-251.374813,0.00016438,2]
[421445329,1777661448000,-500.0,0.00016438,2]
[421445304,1777661448000,-251.374813,0.00016438,2]
[421445310,1777661448000,-500.0,0.00016438,2]
[421445268,1777661448000,-500.0,0.00016437,2]
[421445274,1777661448000,-4235.5,0.00016438,2]
[421445273,1777661448000,-341.60635997,0.00016438,2]
[421445281,1777661448000,-151.0,0.00016438,2]
[421445283,1777661448000,-500.0,0.00016438,2]
[421445279,1777661448000,-1587.979414,0.00016438,2]
[421445282,1777661448000,-151.0,0.00016438,2]
[421445285,1777661448000,-500.0,0.00016438,2]
[421445284,1777661448000,-659.01,0.00016438,2]
[421445287,1777661448000,-500.0,0.00016438,2]
[421445290,1777661448000,-500.0,0.00016438,2]
[421445286,1777661448000,-500.0,0.00016438,2]
[421445280,1777661448000,-1587.979414,0.00016438,2]
[421445272,1777661448000,-475.91,0.00016438,2]
[421445289,1777661448000,-500.0,0.00016438,2]
[421445288,1777661448000,-500.0,0.00016438,2]
[421445300,1777661448000,-1169.248139,0.00016438,2]
[421445298,1777661448000,-1169.248139,0.00016438,2]
[421445301,1777661448000,-1169.248139,0.00016438,2]
[421445295,1777661448000,-162.141956,0.00016438,2]
[421445299,1777661448000,-1169.248139,0.00016438,2]
[421445296,1777661448000,-162.141956,0.00016438,2]
[421445292,1777661448000,-297.27508696,0.00016438,2]
[421445297,1777661448000,-162.141956,0.00016438,2]
[421445291,1777661448000,-500.0,0.00016438,2]
[421445302,1777661448000,-251.374813,0.00016438,2]
[421445293,1777661448000,-150.0,0.00016438,2]
[421445294,1777661448000,-162.141956,0.00016438,2]
[421445358,1777661449000,-500.0,0.00016438,2]
[421445355,1777661449000,-191.85103721,0.00016438,2]
[421445365,1777661449000,-500.0,0.00016438,2]
[421445364,1777661449000,-500.0,0.00016438,2]
[421445366,1777661449000,-211.59468205,0.00016438,2]
[421445374,1777661449000,-151.0,0.00016438,2]
[421445363,1777661449000,-500.0,0.00016438,2]
[421445367,1777661449000,-500.0,0.00016438,2]
[421445370,1777661449000,-153.0,0.00016438,2]
[421445375,1777661449000,-151.0,0.00016438,2]
[421445376,1777661449000,-151.0,0.00016438,2]
[421445369,1777661449000,-153.0,0.00016438,2]
[421445372,1777661449000,-151.0,0.00016438,2]
[421445373,1777661449000,-151.0,0.00016438,2]
[421445371,1777661449000,-153.0,0.00016438,2]
[421445377,1777661449000,-151.0,0.00016438,2]
[421445379,1777661449000,-34706.6,0.00016448,2]
[421445378,1777661449000,-151.0,0.00016438,2]
[421445380,1777661449000,-5526.59,0.00016448,2]
[421445382,1777661449000,-518.0,0.00016476,2]
[421445359,1777661449000,-500.0,0.00016438,2]
[421445368,1777661449000,-235.0,0.00016438,2]
[421445360,1777661449000,-500.0,0.00016438,2]
[421445339,1777661449000,-153.0,0.00016438,2]
[421445357,1777661449000,-409.75044945,0.00016438,2]
[421445335,1777661449000,-229.47,0.00016438,2]
[421445336,1777661449000,-900.0,0.00016438,2]
[421445337,1777661449000,-500.0,0.00016438,2]
[421445338,1777661449000,-500.0,0.00016438,2]
[421445341,1777661449000,-153.0,0.00016438,2]
[421445344,1777661449000,-7696.431595,0.00016438,2]
[421445349,1777661449000,-7696.431595,0.00016438,2]
[421445347,1777661449000,-7696.431595,0.00016438,2]
[421445346,1777661449000,-7696.431595,0.00016438,2]
[421445342,1777661449000,-153.0,0.00016438,2]
[421445350,1777661449000,-7696.431595,0.00016438,2]
[421445348,1777661449000,-7696.431595,0.00016438,2]
[421445343,1777661449000,-155.29901034,0.00016438,2]
[421445340,1777661449000,-226.1115969,0.00016438,2]
[421445361,1777661449000,-169.19864183,0.00016438,2]
[421445351,1777661449000,-7696.431595,0.00016438,2]
[421445352,1777661449000,-500.0,0.00016438,2]
[421445383,1777661449000,-1220.0,0.00016476,2]
[421445362,1777661449000,-520.28307486,0.00016438,2]
[421445353,1777661449000,-500.0,0.00016438,2]
[421445356,1777661449000,-500.0,0.00016438,2]
[421445354,1777661449000,-500.0,0.00016438,2]
[421445345,1777661449000,-7696.431595,0.00016438,2]
[421445388,1777661449000,-7847.30485673,0.0001664,2]
[421445414,1777661449000,-231.0,0.00016983,2]
[421445381,1777661449000,-962.56,0.00016454,2]
[421445412,1777661449000,-400.0,0.00016983,2]
[421445415,1777661449000,-500.0,0.00016986,2]
[421445413,1777661449000,-400.0,0.00016983,2]
[421445416,1777661449000,-500.0,0.00016986,2]
[421445417,1777661449000,-654.683004,0.00016986,2]
[421445418,1777661449000,-654.683004,0.00016986,2]
[421445423,1777661449000,-450.74608,0.00016986,2]
[421445422,1777661449000,-450.74608,0.00016986,2]
[421445426,1777661449000,-511.34,0.00016986,2]
[421445419,1777661449000,-654.683004,0.00016986,2]
[421445420,1777661449000,-654.683004,0.00016986,2]
[421445425,1777661449000,-450.74608,0.00016986,2]
[421445424,1777661449000,-450.74608,0.00016986,2]
[421445427,1777661449000,-500.0,0.00016986,2]
[421445428,1777661449000,-872.10734053,0.00016986,2]
[421445429,1777661449000,-1000.0,0.00016986,2]
[421445430,1777661449000,-1000.0,0.00016986,2]
[421445433,1777661449000,-1000.0,0.00016986,2]
[421445432,1777661449000,-1000.0,0.00016986,2]
[421445431,1777661449000,-1000.0,0.00016986,2]
[421445385,1777661449000,-466.58,0.00016477,2]
[421445408,1777661449000,-400.0,0.00016983,2]
[421445411,1777661449000,-400.0,0.00016983,2]
[421445421,1777661449000,-417.75932935,0.00016986,2]
[421445409,1777661449000,-400.0,0.00016983,2]
[421445386,1777661449000,-466.58,0.00016544,2]
[421445410,1777661449000,-400.0,0.00016983,2]
[421445384,1777661449000,-431.0,0.00016476,2]
[421445387,1777661449000,-466.58,0.00016612,2]
[421445392,1777661449000,-3000.0,0.00016712,2]
[421445389,1777661449000,-466.58,0.0001668,2]
[421445390,1777661449000,-234.37,0.00016712,2]
[421445396,1777661449000,-150.0,0.00016817,2]
[421445397,1777661449000,-150.0,0.00016817,2]
[421445393,1777661449000,-720.7632146,0.00016717,2]
[421445391,1777661449000,-450.0,0.00016712,2]
[421445394,1777661449000,-4091.11072291,0.00016812,18]
[421445399,1777661449000,-621.78829552,0.00016843,2]
[421445400,1777661449000,-775.47832561,0.00016843,2]
[421445398,1777661449000,-186.0,0.00016817,2]
[421445405,1777661449000,-400.0,0.00016983,2]
[421445403,1777661449000,-251.0,0.00016967,2]
[421445404,1777661449000,-4778.54,0.0001697,2]
[421445402,1777661449000,-168.71,0.00016927,2]
[421445406,1777661449000,-400.0,0.00016983,2]
[421445401,1777661449000,-168.69,0.00016927,2]
[421445395,1777661449000,-150.0,0.00016817,2]
[421445407,1777661449000,-400.0,0.00016983,2]
[421445466,1777661450000,-350.0,0.00017,2]
[421445468,1777661450000,-637.0,0.00017148,2]
[421445465,1777661450000,-161.44,0.00017,2]
[421445464,1777661450000,-1000.0,0.00016986,2]
[421445460,1777661450000,-1068.97778393,0.00016986,2]
[421445469,1777661450000,-906.0,0.00017148,2]
[421445463,1777661450000,-1000.0,0.00016986,2]
[421445462,1777661450000,-1000.0,0.00016986,2]
[421445467,1777661450000,-442.48,0.000171,2]
[421445470,1777661450000,-1300.0,0.0001715,2]
[421445471,1777661450000,-1300.0,0.0001715,2]
[421445484,1777661450000,-518.0,0.00017476,2]
[421445472,1777661450000,-1300.0,0.0001715,2]
[421445473,1777661450000,-1300.0,0.0001715,2]
[421445475,1777661450000,-1300.0,0.0001715,2]
[421445476,1777661450000,-1300.0,0.0001715,2]
[421445480,1777661450000,-550.0,0.0001726,2]
[421445478,1777661450000,-1300.0,0.0001715,2]
[421445479,1777661450000,-1161.0,0.0001715,2]
[421445477,1777661450000,-1300.0,0.0001715,2]
[421445481,1777661450000,-150.0,0.0001731,2]
[421445461,1777661450000,-425.50576493,0.00016986,2]
[421445474,1777661450000,-1300.0,0.0001715,2]
[421445456,1777661450000,-1000.0,0.00016986,2]
[421445436,1777661450000,-1000.0,0.00016986,2]
[421445457,1777661450000,-1000.0,0.00016986,2]
[421445434,1777661450000,-150.0,0.00016986,2]
[421445482,1777661450000,-150.0,0.0001731,2]
[421445437,1777661450000,-1000.0,0.00016986,2]
[421445435,1777661450000,-1000.0,0.00016986,2]
[421445439,1777661450000,-1000.0,0.00016986,2]
[421445438,1777661450000,-1000.0,0.00016986,2]
[421445440,1777661450000,-1000.0,0.00016986,2]
[421445442,1777661450000,-1000.0,0.00016986,2]
[421445443,1777661450000,-1000.0,0.00016986,2]
[421445447,1777661450000,-1000.0,0.00016986,2]
[421445459,1777661450000,-298.23814989,0.00016986,2]
[421445446,1777661450000,-1000.0,0.00016986,2]
[421445444,1777661450000,-1000.0,0.00016986,2]
[421445445,1777661450000,-1000.0,0.00016986,2]
[421445450,1777661450000,-1000.0,0.00016986,2]
[421445451,1777661450000,-1000.0,0.00016986,2]
[421445449,1777661450000,-930.54877356,0.00016986,2]
[421445452,1777661450000,-1000.0,0.00016986,2]
[421445453,1777661450000,-1000.0,0.00016986,2]
[421445458,1777661450000,-1000.63195989,0.00016986,2]
[421445454,1777661450000,-1000.0,0.00016986,2]
[421445455,1777661450000,-1000.0,0.00016986,2]
[421445448,1777661450000,-1000.0,0.00016986,2]
[421445483,1777661450000,-3000.0,0.00017342,2]
[421445441,1777661450000,-1000.0,0.00016986,2]
[421445487,1777661450000,-500.0,0.00017533,2]
[421445517,1777661450000,-1500.0,0.00017534,2]
[421445515,1777661450000,-1500.0,0.00017534,2]
[421445519,1777661450000,-1573.1210661,0.00017534,2]
[421445518,1777661450000,-1241.63618543,0.00017534,2]
[421445516,1777661450000,-1164.90357451,0.00017534,2]
[421445514,1777661450000,-1500.0,0.00017534,2]
[421445521,1777661450000,-1500.0,0.00017534,2]
[421445522,1777661450000,-1500.0,0.00017534,2]
[421445520,1777661450000,-1500.0,0.00017534,2]
[421445523,1777661450000,-1500.0,0.00017534,2]
[421445526,1777661450000,-1049.0,0.0001754,2]
[421445524,1777661450000,-3533.0,0.0001754,2]
[421445525,1777661450000,-1350.0,0.0001754,2]
[421445527,1777661450000,-623.0,0.0001754,2]
[421445532,1777661450000,-532.57,0.00017752,2]
[421445530,1777661450000,-416.0,0.0001754,2]
[421445528,1777661450000,-1255.0,0.0001754,2]
[421445529,1777661450000,-928.0,0.0001754,2]
[421445485,1777661450000,-1220.0,0.00017476,2]
[421445533,1777661450000,-475.91,0.00017752,2]
[421445535,1777661450000,-7417.08,0.00017755,2]
[421445534,1777661450000,-8300.07,0.00017755,2]
[421445536,1777661450000,-650.0,0.00017808,2]
[421445512,1777661450000,-1500.0,0.00017534,2]
[421445513,1777661450000,-569.17292432,0.00017534,2]
[421445531,1777661450000,-790.7409464,0.000177,2]
[421445508,1777661450000,-1500.0,0.00017534,2]
[421445510,1777661450000,-1500.0,0.00017534,2]
[421445489,1777661450000,-251.374813,0.00017534,2]
[421445490,1777661450000,-251.374813,0.00017534,2]
[421445488,1777661450000,-659.01,0.00017533,2]
[421445491,1777661450000,-251.374813,0.00017534,2]
[421445494,1777661450000,-256.95561853,0.00017534,2]
[421445493,1777661450000,-1500.0,0.00017534,2]
[421445492,1777661450000,-251.374813,0.00017534,2]
[421445495,1777661450000,-1500.0,0.00017534,2]
[421445501,1777661450000,-1500.0,0.00017534,2]
[421445497,1777661450000,-1500.0,0.00017534,2]
[421445486,1777661450000,-431.0,0.00017476,2]
[421445496,1777661450000,-1500.0,0.00017534,2]
[421445500,1777661450000,-1500.0,0.00017534,2]
[421445506,1777661450000,-1500.0,0.00017534,2]
[421445507,1777661450000,-1500.0,0.00017534,2]
[421445504,1777661450000,-1500.0,0.00017534,2]
[421445511,1777661450000,-1500.0,0.00017534,2]
[421445503,1777661450000,-1500.0,0.00017534,2]
[421445502,1777661450000,-1500.0,0.00017534,2]
[421445499,1777661450000,-1500.0,0.00017534,2]
[421445498,1777661450000,-150.0,0.00017534,2]
[421445505,1777661450000,-751.79648033,0.00017534,2]
[421445509,1777661450000,-1500.0,0.00017534,2]
[421445560,1777661451000,-2000.0,0.00018082,2]
[421445570,1777661451000,-2000.0,0.00018082,2]
[421445561,1777661451000,-2000.0,0.00018082,2]
[421445559,1777661451000,-2000.0,0.00018082,2]
[421445564,1777661451000,-1708.62266316,0.00018082,2]
[421445565,1777661451000,-2000.0,0.00018082,2]
[421445566,1777661451000,-2000.0,0.00018082,2]
[421445563,1777661451000,-507.43113302,0.00018082,2]
[421445567,1777661451000,-2000.0,0.00018082,2]
[421445573,1777661451000,-2000.0,0.00018082,2]
[421445571,1777661451000,-2000.0,0.00018082,2]
[421445568,1777661451000,-400.56185748,0.00018082,2]
[421445572,1777661451000,-2000.0,0.00018082,2]
[421445585,1777661451000,-500.0,0.00018355,2]
[421445575,1777661451000,-2000.0,0.00018082,2]
[421445574,1777661451000,-2000.0,0.00018082,2]
[421445580,1777661451000,-906.0,0.00018148,2]
[421445556,1777661451000,-1534.32554608,0.00018082,2]
[421445569,1777661451000,-959.45841849,0.00018082,2]
[421445558,1777661451000,-175.35739159,0.00018082,2]
[421445546,1777661451000,-962.56,0.0001795,2]
[421445554,1777661451000,-2000.0,0.00018082,2]
[421445538,1777661451000,-153.290039,0.00017817,2]
[421445537,1777661451000,-153.290039,0.00017817,2]
[421445540,1777661451000,-153.290039,0.00017817,2]
[421445550,1777661451000,-1542.62343442,0.00018,2]
[421445541,1777661451000,-1012.55463309,0.0001786,2]
[421445543,1777661451000,-1082.60094473,0.0001789,2]
[421445544,1777661451000,-21500.0,0.000179,6]
[421445542,1777661451000,-1235.45745383,0.0001789,2]
[421445551,1777661451000,-1595.23455264,0.00018,2]
[421445549,1777661451000,-1203.74112503,0.00018,2]
[421445539,1777661451000,-153.290039,0.00017817,2]
[421445548,1777661451000,-3000.0,0.00018,2]
[421445545,1777661451000,-200.0,0.00017904,7]
[421445552,1777661451000,-200.0,0.00018,2]
[421445562,1777661451000,-2000.0,0.00018082,2]
[421445557,1777661451000,-2000.0,0.00018082,2]
[421445555,1777661451000,-2029.70043523,0.00018082,2]
[421445553,1777661451000,-1094.67827711,0.00018082,2]
[421445547,1777661451000,-251.0,0.00017967,2]
[421445584,1777661451000,-500.0,0.00018355,2]
[421445576,1777661451000,-2000.0,0.00018082,2]
[421445583,1777661451000,-500.0,0.00018355,2]
[421445602,1777661451000,-2500.0,0.0001863,2]
[421445607,1777661451000,-2500.0,0.0001863,2]
[421445605,1777661451000,-2500.0,0.0001863,2]
[421445608,1777661451000,-1791.70850578,0.0001863,2]
[421445610,1777661451000,-198.68172679,0.0001863,2]
[421445612,1777661451000,-320.50759172,0.0001863,2]
[421445611,1777661451000,-2500.0,0.0001863,2]
[421445609,1777661451000,-2500.0,0.0001863,2]
[421445598,1777661451000,-1595.23455264,0.000185,2]
[421445618,1777661451000,-1001.48,0.0001863,2]
[421445614,1777661451000,-2500.0,0.0001863,2]
[421445615,1777661451000,-1628.55998939,0.0001863,2]
[421445617,1777661451000,-1110.34184056,0.0001863,2]
[421445620,1777661451000,-1595.23455264,0.000189,2]
[421445619,1777661451000,-1595.23455264,0.000187,2]
[421445621,1777661451000,-442.48,0.000189,2]
[421445622,1777661451000,-850.0,0.00018904,2]
[421445581,1777661451000,-180.42256804,0.00018192,2]
[421445616,1777661451000,-2500.0,0.0001863,2]
[421445604,1777661451000,-498.30887234,0.0001863,2]
[421445613,1777661451000,-211.27366669,0.0001863,2]
[421445600,1777661451000,-2000.0,0.00018535,2]
[421445577,1777661451000,-2000.0,0.00018082,2]
[421445597,1777661451000,-7847.30485673,0.0001848,2]
[421445579,1777661451000,-637.0,0.00018148,2]
[421445578,1777661451000,-1796.64290955,0.000181,2]
[421445582,1777661451000,-1595.23455264,0.000182,2]
[421445595,1777661451000,-518.0,0.00018476,2]
[421445586,1777661451000,-511.34,0.00018355,2]
[421445588,1777661451000,-659.01,0.00018355,2]
[421445589,1777661451000,-89334.75,0.00018356,2]
[421445587,1777661451000,-500.0,0.00018355,2]
[421445593,1777661451000,-1595.23455264,0.000184,2]
[421445592,1777661451000,-4039.74,0.000184,2]
[421445591,1777661451000,-527.89,0.000184,2]
[421445594,1777661451000,-4235.5,0.0001841,2]
[421445596,1777661451000,-1220.0,0.00018476,2]
[421445603,1777661451000,-2000.0,0.0001863,2]
[421445606,1777661451000,-1905.1831353,0.0001863,2]
[421445590,1777661451000,-750.0,0.00018356,2]
[421445599,1777661451000,-500.0,0.00018535,2]
[421445601,1777661451000,-2500.0,0.0001863,2]
[421445654,1777661452000,-500.0,0.00019178,2]
[421445657,1777661452000,-500.0,0.00019178,2]
[421445660,1777661452000,-500.0,0.00019178,2]
[421445658,1777661452000,-500.0,0.00019178,2]
[421445685,1777661452000,-500.0,0.00019178,2]
[421445656,1777661452000,-500.0,0.00019178,2]
[421445655,1777661452000,-500.0,0.00019178,2]
[421445652,1777661452000,-500.0,0.00019178,2]
[421445659,1777661452000,-500.0,0.00019178,2]
[421445653,1777661452000,-500.0,0.00019178,2]